{"text_format":"1","workbook":"xlsx","n_sheets":8,"sheets":["様式第28（第１表）","様式第28（第２表）","様式第28（第３表）","様式第28の２","様式第28の３","様式第28の４（第１表）","様式第28の４（第２表）","（選択）"],"not_rendered":{"charts":0,"images":0,"macros":0,"external_links":0,"defined_names":14,"comments":0,"pivot_tables":0},"unopened":[],"bounds":{"document_bytes":16777216,"sheet_cells":100000,"rows_first":2000,"rows_last":500,"rows_between":2000,"halvings":0,"cell_chars":16384,"cell_head_chars":4096},"cells_cut":0,"cells_raw":0,"read":"whole","date_system":"1900"}

{"sheet":"様式第28（第１表）","index":0,"n_rows":612,"n_cols":17,"rows_kept":612,"cut":false,"hidden":false,"merged":[[612,2,612,16],[10,15,11,15],[10,14,11,14],[10,11,10,13],[10,2,10,10],[603,2,603,16],[604,2,604,16],[611,2,611,16],[605,2,605,16],[606,2,606,16],[607,2,607,16],[608,2,608,16],[609,2,609,16],[610,2,610,16],[602,2,602,16],[3,1,3,16],[4,1,4,16],[6,13,6,16],[600,2,600,16],[601,2,601,16],[10,1,11,1],[7,13,7,16],[8,13,8,16]]}
[null,"様式第28（第８条関係）"]
[null,"　第１表"]
[]
[null,"電気通信番号の使用に関する報告"]
[null,"（自らが指定を受けた番号(0AB～J)/番号使用状況）"]
[null,"※指定を受けていない番号区画の行は削除せず、そのまま空欄にしておいて下さい。"]
[null,null,null,null,null,null,null,null,null,null,null,null,null,"令和　　年3月31日現在"]
[null,null,null,null,null,null,null,null,null,null,null,"事業者名"]
[null,null,null,null,null,null,null,null,null,null,null,"法人番号"]
[]
[null,"番号区画","番号使用数(1)+(2)+(3)+(4)+(5)+(6)",null,null,null,null,null,null,null,null,"番号未使用数",null,null,"番号休止数","番号ポータビリティに係る番号使用数","合計"]
[null,null,null,"(1)うち\nアナログ電話","(2)うち\n総合デジタル通信サービス","(3)うち\nＩＰ電話","(4)うちワイヤレス固定電話","(5)うちダイヤルイン番号使用数","(6)うち利用者から見えない形で使用されるものの数","うち卸提供数","うち電話転送役務の数",null,"うち卸提供数","うち永続的に使用予定のないものの数"]
[null,"001",null,null,null,null,null,null,null,null,null,null,null,null,null,null,{"$f":"SUM(C13+L13+O13+P13)","v":0}]
[null,"002",null,null,null,null,null,null,null,null,null,null,null,null,null,null,{"$f":"SUM(C14+L14+O14+P14)","v":0}]
[null,"003",null,null,null,null,null,null,null,null,null,null,null,null,null,null,0]
[null,"004-2",null,null,null,null,null,null,null,null,null,null,null,null,null,null,0]
[null,"006",null,null,null,null,null,null,null,null,null,null,null,null,null,null,0]
[null,"007",null,null,null,null,null,null,null,null,null,null,null,null,null,null,0]
[null,"008-2",null,null,null,null,null,null,null,null,null,null,null,null,null,null,0]
[null,"010",null,null,null,null,null,null,null,null,null,null,null,null,null,null,0]
[null,"011-2",null,null,null,null,null,null,null,null,null,null,null,null,null,null,0]
[null,"012",null,null,null,null,null,null,null,null,null,null,null,null,null,null,0]
[null,"015",null,null,null,null,null,null,null,null,null,null,null,null,null,null,0]
[null,"016",null,null,null,null,null,null,null,null,null,null,null,null,null,null,0]
[null,"017",null,null,null,null,null,null,null,null,null,null,null,null,null,null,0]
[null,"018",null,null,null,null,null,null,null,null,null,null,null,null,null,null,0]
[null,"019",null,null,null,null,null,null,null,null,null,null,null,null,null,null,0]
[null,"020",null,null,null,null,null,null,null,null,null,null,null,null,null,null,0]
[null,"021",null,null,null,null,null,null,null,null,null,null,null,null,null,null,0]
[null,"022",null,null,null,null,null,null,null,null,null,null,null,null,null,null,0]
[null,"023",null,null,null,null,null,null,null,null,null,null,null,null,null,null,0]
[null,"024",null,null,null,null,null,null,null,null,null,null,null,null,null,null,0]
[null,"025",null,null,null,null,null,null,null,null,null,null,null,null,null,null,0]
[null,"026",null,null,null,null,null,null,null,null,null,null,null,null,null,null,0]
[null,"027",null,null,null,null,null,null,null,null,null,null,null,null,null,null,0]
[null,"028-2",null,null,null,null,null,null,null,null,null,null,null,null,null,null,0]
[null,"030",null,null,null,null,null,null,null,null,null,null,null,null,null,null,0]
[null,"031",null,null,null,null,null,null,null,null,null,null,null,null,null,null,0]
[null,"032",null,null,null,null,null,null,null,null,null,null,null,null,null,null,0]
[null,"033",null,null,null,null,null,null,null,null,null,null,null,null,null,null,0]
[null,"034",null,null,null,null,null,null,null,null,null,null,null,null,null,null,0]
[null,"035",null,null,null,null,null,null,null,null,null,null,null,null,null,null,0]
[null,"036",null,null,null,null,null,null,null,null,null,null,null,null,null,null,0]
[null,"037",null,null,null,null,null,null,null,null,null,null,null,null,null,null,0]
[null,"038",null,null,null,null,null,null,null,null,null,null,null,null,null,null,0]
[null,"039-2",null,null,null,null,null,null,null,null,null,null,null,null,null,null,0]
[null,"041",null,null,null,null,null,null,null,null,null,null,null,null,null,null,0]
[null,"042",null,null,null,null,null,null,null,null,null,null,null,null,null,null,0]
[null,"043",null,null,null,null,null,null,null,null,null,null,null,null,null,null,0]
[null,"044",null,null,null,null,null,null,null,null,null,null,null,null,null,null,0]
[null,"045",null,null,null,null,null,null,null,null,null,null,null,null,null,null,0]
[null,"046",null,null,null,null,null,null,null,null,null,null,null,null,null,null,0]
[null,"047",null,null,null,null,null,null,null,null,null,null,null,null,null,null,0]
[null,"048",null,null,null,null,null,null,null,null,null,null,null,null,null,null,0]
[null,"049",null,null,null,null,null,null,null,null,null,null,null,null,null,null,0]
[null,"050",null,null,null,null,null,null,null,null,null,null,null,null,null,null,0]
[null,"051",null,null,null,null,null,null,null,null,null,null,null,null,null,null,0]
[null,"052",null,null,null,null,null,null,null,null,null,null,null,null,null,null,0]
[null,"053",null,null,null,null,null,null,null,null,null,null,null,null,null,null,0]
[null,"054",null,null,null,null,null,null,null,null,null,null,null,null,null,null,0]
[null,"055",null,null,null,null,null,null,null,null,null,null,null,null,null,null,0]
[null,"056",null,null,null,null,null,null,null,null,null,null,null,null,null,null,0]
[null,"057",null,null,null,null,null,null,null,null,null,null,null,null,null,null,0]
[null,"058",null,null,null,null,null,null,null,null,null,null,null,null,null,null,0]
[null,"059",null,null,null,null,null,null,null,null,null,null,null,null,null,null,0]
[null,"060-2",null,null,null,null,null,null,null,null,null,null,null,null,null,null,0]
[null,"062",null,null,null,null,null,null,null,null,null,null,null,null,null,null,0]
[null,"063",null,null,null,null,null,null,null,null,null,null,null,null,null,null,0]
[null,"064",null,null,null,null,null,null,null,null,null,null,null,null,null,null,0]
[null,"065",null,null,null,null,null,null,null,null,null,null,null,null,null,null,0]
[null,"066",null,null,null,null,null,null,null,null,null,null,null,null,null,null,0]
[null,"067",null,null,null,null,null,null,null,null,null,null,null,null,null,null,0]
[null,"068",null,null,null,null,null,null,null,null,null,null,null,null,null,null,0]
[null,"069",null,null,null,null,null,null,null,null,null,null,null,null,null,null,0]
[null,"070",null,null,null,null,null,null,null,null,null,null,null,null,null,null,0]
[null,"071",null,null,null,null,null,null,null,null,null,null,null,null,null,null,0]
[null,"072",null,null,null,null,null,null,null,null,null,null,null,null,null,null,0]
[null,"073",null,null,null,null,null,null,null,null,null,null,null,null,null,null,{"$f":"SUM(C78+L78+O78+P78)","v":0}]
[null,"074",null,null,null,null,null,null,null,null,null,null,null,null,null,null,0]
[null,"075",null,null,null,null,null,null,null,null,null,null,null,null,null,null,0]
[null,"076-2",null,null,null,null,null,null,null,null,null,null,null,null,null,null,0]
[null,"081",null,null,null,null,null,null,null,null,null,null,null,null,null,null,0]
[null,"082",null,null,null,null,null,null,null,null,null,null,null,null,null,null,0]
[null,"083",null,null,null,null,null,null,null,null,null,null,null,null,null,null,0]
[null,"084",null,null,null,null,null,null,null,null,null,null,null,null,null,null,0]
[null,"085",null,null,null,null,null,null,null,null,null,null,null,null,null,null,0]
[null,"086",null,null,null,null,null,null,null,null,null,null,null,null,null,null,0]
[null,"087",null,null,null,null,null,null,null,null,null,null,null,null,null,null,0]
[null,"088",null,null,null,null,null,null,null,null,null,null,null,null,null,null,0]
[null,"089",null,null,null,null,null,null,null,null,null,null,null,null,null,null,0]
[null,"090",null,null,null,null,null,null,null,null,null,null,null,null,null,null,0]
[null,"091",null,null,null,null,null,null,null,null,null,null,null,null,null,null,0]
[null,"092",null,null,null,null,null,null,null,null,null,null,null,null,null,null,0]
[null,"093",null,null,null,null,null,null,null,null,null,null,null,null,null,null,0]
[null,"094-2",null,null,null,null,null,null,null,null,null,null,null,null,null,null,0]
[null,"095",null,null,null,null,null,null,null,null,null,null,null,null,null,null,0]
[null,"096",null,null,null,null,null,null,null,null,null,null,null,null,null,null,0]
[null,"097",null,null,null,null,null,null,null,null,null,null,null,null,null,null,0]
[null,"098",null,null,null,null,null,null,null,null,null,null,null,null,null,null,0]
[null,"099",null,null,null,null,null,null,null,null,null,null,null,null,null,null,0]
[null,100,null,null,null,null,null,null,null,null,null,null,null,null,null,null,0]
[null,101,null,null,null,null,null,null,null,null,null,null,null,null,null,null,0]
[null,102,null,null,null,null,null,null,null,null,null,null,null,null,null,null,0]
[null,103,null,null,null,null,null,null,null,null,null,null,null,null,null,null,0]
[null,104,null,null,null,null,null,null,null,null,null,null,null,null,null,null,0]
[null,105,null,null,null,null,null,null,null,null,null,null,null,null,null,null,0]
[null,106,null,null,null,null,null,null,null,null,null,null,null,null,null,null,0]
[null,107,null,null,null,null,null,null,null,null,null,null,null,null,null,null,0]
[null,108,null,null,null,null,null,null,null,null,null,null,null,null,null,null,0]
[null,109,null,null,null,null,null,null,null,null,null,null,null,null,null,null,0]
[null,110,null,null,null,null,null,null,null,null,null,null,null,null,null,null,0]
[null,111,null,null,null,null,null,null,null,null,null,null,null,null,null,null,0]
[null,112,null,null,null,null,null,null,null,null,null,null,null,null,null,null,0]
[null,113,null,null,null,null,null,null,null,null,null,null,null,null,null,null,0]
[null,114,null,null,null,null,null,null,null,null,null,null,null,null,null,null,0]
[null,115,null,null,null,null,null,null,null,null,null,null,null,null,null,null,0]
[null,116,null,null,null,null,null,null,null,null,null,null,null,null,null,null,0]
[null,117,null,null,null,null,null,null,null,null,null,null,null,null,null,null,0]
[null,118,null,null,null,null,null,null,null,null,null,null,null,null,null,null,0]
[null,119,null,null,null,null,null,null,null,null,null,null,null,null,null,null,0]
[null,120,null,null,null,null,null,null,null,null,null,null,null,null,null,null,0]
[null,121,null,null,null,null,null,null,null,null,null,null,null,null,null,null,0]
[null,122,null,null,null,null,null,null,null,null,null,null,null,null,null,null,0]
[null,123,null,null,null,null,null,null,null,null,null,null,null,null,null,null,0]
[null,124,null,null,null,null,null,null,null,null,null,null,null,null,null,null,0]
[null,125,null,null,null,null,null,null,null,null,null,null,null,null,null,null,0]
[null,126,null,null,null,null,null,null,null,null,null,null,null,null,null,null,0]
[null,127,null,null,null,null,null,null,null,null,null,null,null,null,null,null,0]
[null,128,null,null,null,null,null,null,null,null,null,null,null,null,null,null,0]
[null,129,null,null,null,null,null,null,null,null,null,null,null,null,null,null,0]
[null,130,null,null,null,null,null,null,null,null,null,null,null,null,null,null,0]
[null,131,null,null,null,null,null,null,null,null,null,null,null,null,null,null,0]
[null,132,null,null,null,null,null,null,null,null,null,null,null,null,null,null,0]
[null,133,null,null,null,null,null,null,null,null,null,null,null,null,null,null,0]
[null,134,null,null,null,null,null,null,null,null,null,null,null,null,null,null,0]
[null,135,null,null,null,null,null,null,null,null,null,null,null,null,null,null,0]
[null,136,null,null,null,null,null,null,null,null,null,null,null,null,null,null,0]
[null,137,null,null,null,null,null,null,null,null,null,null,null,null,null,null,0]
[null,138,null,null,null,null,null,null,null,null,null,null,null,null,null,null,0]
[null,139,null,null,null,null,null,null,null,null,null,null,null,null,null,null,0]
[null,140,null,null,null,null,null,null,null,null,null,null,null,null,null,null,0]
[null,141,null,null,null,null,null,null,null,null,null,null,null,null,null,null,{"$f":"SUM(C142+L142+O142+P142)","v":0}]
[null,142,null,null,null,null,null,null,null,null,null,null,null,null,null,null,0]
[null,143,null,null,null,null,null,null,null,null,null,null,null,null,null,null,0]
[null,144,null,null,null,null,null,null,null,null,null,null,null,null,null,null,0]
[null,145,null,null,null,null,null,null,null,null,null,null,null,null,null,null,0]
[null,146,null,null,null,null,null,null,null,null,null,null,null,null,null,null,0]
[null,147,null,null,null,null,null,null,null,null,null,null,null,null,null,null,0]
[null,148,null,null,null,null,null,null,null,null,null,null,null,null,null,null,0]
[null,149,null,null,null,null,null,null,null,null,null,null,null,null,null,null,0]
[null,150,null,null,null,null,null,null,null,null,null,null,null,null,null,null,0]
[null,151,null,null,null,null,null,null,null,null,null,null,null,null,null,null,0]
[null,152,null,null,null,null,null,null,null,null,null,null,null,null,null,null,0]
[null,153,null,null,null,null,null,null,null,null,null,null,null,null,null,null,0]
[null,154,null,null,null,null,null,null,null,null,null,null,null,null,null,null,0]
[null,155,null,null,null,null,null,null,null,null,null,null,null,null,null,null,0]
[null,156,null,null,null,null,null,null,null,null,null,null,null,null,null,null,0]
[null,157,null,null,null,null,null,null,null,null,null,null,null,null,null,null,0]
[null,158,null,null,null,null,null,null,null,null,null,null,null,null,null,null,0]
[null,159,null,null,null,null,null,null,null,null,null,null,null,null,null,null,0]
[null,160,null,null,null,null,null,null,null,null,null,null,null,null,null,null,0]
[null,161,null,null,null,null,null,null,null,null,null,null,null,null,null,null,0]
[null,162,null,null,null,null,null,null,null,null,null,null,null,null,null,null,0]
[null,163,null,null,null,null,null,null,null,null,null,null,null,null,null,null,0]
[null,164,null,null,null,null,null,null,null,null,null,null,null,null,null,null,0]
[null,165,null,null,null,null,null,null,null,null,null,null,null,null,null,null,0]
[null,166,null,null,null,null,null,null,null,null,null,null,null,null,null,null,0]
[null,167,null,null,null,null,null,null,null,null,null,null,null,null,null,null,0]
[null,168,null,null,null,null,null,null,null,null,null,null,null,null,null,null,0]
[null,"169-2",null,null,null,null,null,null,null,null,null,null,null,null,null,null,0]
[null,171,null,null,null,null,null,null,null,null,null,null,null,null,null,null,0]
[null,172,null,null,null,null,null,null,null,null,null,null,null,null,null,null,0]
[null,173,null,null,null,null,null,null,null,null,null,null,null,null,null,null,0]
[null,174,null,null,null,null,null,null,null,null,null,null,null,null,null,null,0]
[null,175,null,null,null,null,null,null,null,null,null,null,null,null,null,null,0]
[null,176,null,null,null,null,null,null,null,null,null,null,null,null,null,null,0]
[null,177,null,null,null,null,null,null,null,null,null,null,null,null,null,null,0]
[null,178,null,null,null,null,null,null,null,null,null,null,null,null,null,null,0]
[null,179,null,null,null,null,null,null,null,null,null,null,null,null,null,null,0]
[null,180,null,null,null,null,null,null,null,null,null,null,null,null,null,null,0]
[null,181,null,null,null,null,null,null,null,null,null,null,null,null,null,null,0]
[null,182,null,null,null,null,null,null,null,null,null,null,null,null,null,null,0]
[null,183,null,null,null,null,null,null,null,null,null,null,null,null,null,null,0]
[null,184,null,null,null,null,null,null,null,null,null,null,null,null,null,null,0]
[null,185,null,null,null,null,null,null,null,null,null,null,null,null,null,null,0]
[null,186,null,null,null,null,null,null,null,null,null,null,null,null,null,null,0]
[null,187,null,null,null,null,null,null,null,null,null,null,null,null,null,null,0]
[null,188,null,null,null,null,null,null,null,null,null,null,null,null,null,null,0]
[null,189,null,null,null,null,null,null,null,null,null,null,null,null,null,null,0]
[null,190,null,null,null,null,null,null,null,null,null,null,null,null,null,null,0]
[null,191,null,null,null,null,null,null,null,null,null,null,null,null,null,null,0]
[null,192,null,null,null,null,null,null,null,null,null,null,null,null,null,null,0]
[null,193,null,null,null,null,null,null,null,null,null,null,null,null,null,null,0]
[null,194,null,null,null,null,null,null,null,null,null,null,null,null,null,null,0]
[null,195,null,null,null,null,null,null,null,null,null,null,null,null,null,null,0]
[null,196,null,null,null,null,null,null,null,null,null,null,null,null,null,null,0]
[null,197,null,null,null,null,null,null,null,null,null,null,null,null,null,null,0]
[null,198,null,null,null,null,null,null,null,null,null,null,null,null,null,null,0]
[null,199,null,null,null,null,null,null,null,null,null,null,null,null,null,null,0]
[null,200,null,null,null,null,null,null,null,null,null,null,null,null,null,null,0]
[null,201,null,null,null,null,null,null,null,null,null,null,null,null,null,null,0]
[null,202,null,null,null,null,null,null,null,null,null,null,null,null,null,null,0]
[null,203,null,null,null,null,null,null,null,null,null,null,null,null,null,null,0]
[null,204,null,null,null,null,null,null,null,null,null,null,null,null,null,null,0]
[null,205,null,null,null,null,null,null,null,null,null,null,null,null,null,null,0]
[null,206,null,null,null,null,null,null,null,null,null,null,null,null,null,null,{"$f":"SUM(C206+L206+O206+P206)","v":0}]
[null,207,null,null,null,null,null,null,null,null,null,null,null,null,null,null,0]
[null,208,null,null,null,null,null,null,null,null,null,null,null,null,null,null,0]
[null,209,null,null,null,null,null,null,null,null,null,null,null,null,null,null,0]
[null,"210-2",null,null,null,null,null,null,null,null,null,null,null,null,null,null,0]
[null,211,null,null,null,null,null,null,null,null,null,null,null,null,null,null,0]
[null,212,null,null,null,null,null,null,null,null,null,null,null,null,null,null,0]
[null,213,null,null,null,null,null,null,null,null,null,null,null,null,null,null,0]
[null,214,null,null,null,null,null,null,null,null,null,null,null,null,null,null,0]
[null,215,null,null,null,null,null,null,null,null,null,null,null,null,null,null,0]
[null,216,null,null,null,null,null,null,null,null,null,null,null,null,null,null,0]
[null,217,null,null,null,null,null,null,null,null,null,null,null,null,null,null,0]
[null,218,null,null,null,null,null,null,null,null,null,null,null,null,null,null,0]
[null,219,null,null,null,null,null,null,null,null,null,null,null,null,null,null,0]
[null,220,null,null,null,null,null,null,null,null,null,null,null,null,null,null,0]
[null,221,null,null,null,null,null,null,null,null,null,null,null,null,null,null,0]
[null,222,null,null,null,null,null,null,null,null,null,null,null,null,null,null,0]
[null,223,null,null,null,null,null,null,null,null,null,null,null,null,null,null,0]
[null,224,null,null,null,null,null,null,null,null,null,null,null,null,null,null,0]
[null,225,null,null,null,null,null,null,null,null,null,null,null,null,null,null,0]
[null,226,null,null,null,null,null,null,null,null,null,null,null,null,null,null,0]
[null,227,null,null,null,null,null,null,null,null,null,null,null,null,null,null,0]
[null,228,null,null,null,null,null,null,null,null,null,null,null,null,null,null,0]
[null,229,null,null,null,null,null,null,null,null,null,null,null,null,null,null,0]
[null,230,null,null,null,null,null,null,null,null,null,null,null,null,null,null,0]
[null,231,null,null,null,null,null,null,null,null,null,null,null,null,null,null,0]
[null,232,null,null,null,null,null,null,null,null,null,null,null,null,null,null,0]
[null,233,null,null,null,null,null,null,null,null,null,null,null,null,null,null,0]
[null,234,null,null,null,null,null,null,null,null,null,null,null,null,null,null,0]
[null,235,null,null,null,null,null,null,null,null,null,null,null,null,null,null,0]
[null,"236-2",null,null,null,null,null,null,null,null,null,null,null,null,null,null,0]
[null,237,null,null,null,null,null,null,null,null,null,null,null,null,null,null,0]
[null,238,null,null,null,null,null,null,null,null,null,null,null,null,null,null,0]
[null,239,null,null,null,null,null,null,null,null,null,null,null,null,null,null,0]
[null,240,null,null,null,null,null,null,null,null,null,null,null,null,null,null,0]
[null,241,null,null,null,null,null,null,null,null,null,null,null,null,null,null,0]
[null,242,null,null,null,null,null,null,null,null,null,null,null,null,null,null,0]
[null,243,null,null,null,null,null,null,null,null,null,null,null,null,null,null,0]
[null,244,null,null,null,null,null,null,null,null,null,null,null,null,null,null,0]
[null,245,null,null,null,null,null,null,null,null,null,null,null,null,null,null,0]
[null,246,null,null,null,null,null,null,null,null,null,null,null,null,null,null,0]
[null,247,null,null,null,null,null,null,null,null,null,null,null,null,null,null,0]
[null,248,null,null,null,null,null,null,null,null,null,null,null,null,null,null,0]
[null,249,null,null,null,null,null,null,null,null,null,null,null,null,null,null,0]
[null,250,null,null,null,null,null,null,null,null,null,null,null,null,null,null,0]
[null,251,null,null,null,null,null,null,null,null,null,null,null,null,null,null,0]
[null,252,null,null,null,null,null,null,null,null,null,null,null,null,null,null,0]
[null,253,null,null,null,null,null,null,null,null,null,null,null,null,null,null,0]
[null,254,null,null,null,null,null,null,null,null,null,null,null,null,null,null,0]
[null,255,null,null,null,null,null,null,null,null,null,null,null,null,null,null,0]
[null,256,null,null,null,null,null,null,null,null,null,null,null,null,null,null,0]
[null,"257-2",null,null,null,null,null,null,null,null,null,null,null,null,null,null,0]
[null,258,null,null,null,null,null,null,null,null,null,null,null,null,null,null,0]
[null,259,null,null,null,null,null,null,null,null,null,null,null,null,null,null,0]
[null,260,null,null,null,null,null,null,null,null,null,null,null,null,null,null,0]
[null,261,null,null,null,null,null,null,null,null,null,null,null,null,null,null,0]
[null,262,null,null,null,null,null,null,null,null,null,null,null,null,null,null,0]
[null,263,null,null,null,null,null,null,null,null,null,null,null,null,null,null,0]
[null,264,null,null,null,null,null,null,null,null,null,null,null,null,null,null,0]
[null,265,null,null,null,null,null,null,null,null,null,null,null,null,null,null,0]
[null,266,null,null,null,null,null,null,null,null,null,null,null,null,null,null,0]
[null,267,null,null,null,null,null,null,null,null,null,null,null,null,null,null,0]
[null,268,null,null,null,null,null,null,null,null,null,null,null,null,null,null,0]
[null,"269-2",null,null,null,null,null,null,null,null,null,null,null,null,null,null,0]
[null,272,null,null,null,null,null,null,null,null,null,null,null,null,null,null,{"$f":"SUM(C270+L270+O270+P270)","v":0}]
[null,273,null,null,null,null,null,null,null,null,null,null,null,null,null,null,0]
[null,"274-2",null,null,null,null,null,null,null,null,null,null,null,null,null,null,0]
[null,"276-2",null,null,null,null,null,null,null,null,null,null,null,null,null,null,0]
[null,280,null,null,null,null,null,null,null,null,null,null,null,null,null,null,0]
[null,281,null,null,null,null,null,null,null,null,null,null,null,null,null,null,0]
[null,282,null,null,null,null,null,null,null,null,null,null,null,null,null,null,0]
[null,"283-2",null,null,null,null,null,null,null,null,null,null,null,null,null,null,0]
[null,285,null,null,null,null,null,null,null,null,null,null,null,null,null,null,0]
[null,286,null,null,null,null,null,null,null,null,null,null,null,null,null,null,0]
[null,287,null,null,null,null,null,null,null,null,null,null,null,null,null,null,0]
[null,288,null,null,null,null,null,null,null,null,null,null,null,null,null,null,0]
[null,289,null,null,null,null,null,null,null,null,null,null,null,null,null,null,0]
[null,290,null,null,null,null,null,null,null,null,null,null,null,null,null,null,0]
[null,291,null,null,null,null,null,null,null,null,null,null,null,null,null,null,0]
[null,292,null,null,null,null,null,null,null,null,null,null,null,null,null,null,0]
[null,293,null,null,null,null,null,null,null,null,null,null,null,null,null,null,0]
[null,294,null,null,null,null,null,null,null,null,null,null,null,null,null,null,0]
[null,295,null,null,null,null,null,null,null,null,null,null,null,null,null,null,0]
[null,296,null,null,null,null,null,null,null,null,null,null,null,null,null,null,0]
[null,297,null,null,null,null,null,null,null,null,null,null,null,null,null,null,0]
[null,298,null,null,null,null,null,null,null,null,null,null,null,null,null,null,0]
[null,299,null,null,null,null,null,null,null,null,null,null,null,null,null,null,0]
[null,300,null,null,null,null,null,null,null,null,null,null,null,null,null,null,0]
[null,"301-3",null,null,null,null,null,null,null,null,null,null,null,null,null,null,0]
[null,304,null,null,null,null,null,null,null,null,null,null,null,null,null,null,0]
[null,305,null,null,null,null,null,null,null,null,null,null,null,null,null,null,0]
[null,306,null,null,null,null,null,null,null,null,null,null,null,null,null,null,0]
[null,307,null,null,null,null,null,null,null,null,null,null,null,null,null,null,0]
[null,308,null,null,null,null,null,null,null,null,null,null,null,null,null,null,0]
[null,"309-2",null,null,null,null,null,null,null,null,null,null,null,null,null,null,0]
[null,312,null,null,null,null,null,null,null,null,null,null,null,null,null,null,0]
[null,313,null,null,null,null,null,null,null,null,null,null,null,null,null,null,0]
[null,314,null,null,null,null,null,null,null,null,null,null,null,null,null,null,0]
[null,315,null,null,null,null,null,null,null,null,null,null,null,null,null,null,0]
[null,316,null,null,null,null,null,null,null,null,null,null,null,null,null,null,0]
[null,317,null,null,null,null,null,null,null,null,null,null,null,null,null,null,0]
[null,318,null,null,null,null,null,null,null,null,null,null,null,null,null,null,0]
[null,319,null,null,null,null,null,null,null,null,null,null,null,null,null,null,0]
[null,320,null,null,null,null,null,null,null,null,null,null,null,null,null,null,0]
[null,321,null,null,null,null,null,null,null,null,null,null,null,null,null,null,0]
[null,322,null,null,null,null,null,null,null,null,null,null,null,null,null,null,0]
[null,323,null,null,null,null,null,null,null,null,null,null,null,null,null,null,0]
[null,324,null,null,null,null,null,null,null,null,null,null,null,null,null,null,0]
[null,"325-2",null,null,null,null,null,null,null,null,null,null,null,null,null,null,0]
[null,"326-3",null,null,null,null,null,null,null,null,null,null,null,null,null,null,0]
[null,332,null,null,null,null,null,null,null,null,null,null,null,null,null,null,0]
[null,333,null,null,null,null,null,null,null,null,null,null,null,null,null,null,0]
[null,"334-2",null,null,null,null,null,null,null,null,null,null,null,null,null,null,0]
[null,336,null,null,null,null,null,null,null,null,null,null,null,null,null,null,0]
[null,337,null,null,null,null,null,null,null,null,null,null,null,null,null,null,0]
[null,338,null,null,null,null,null,null,null,null,null,null,null,null,null,null,0]
[null,339,null,null,null,null,null,null,null,null,null,null,null,null,null,null,0]
[null,340,null,null,null,null,null,null,null,null,null,null,null,null,null,null,0]
[null,"341-2",null,null,null,null,null,null,null,null,null,null,null,null,null,null,0]
[null,343,null,null,null,null,null,null,null,null,null,null,null,null,null,null,0]
[null,"344-3",null,null,null,null,null,null,null,null,null,null,null,null,null,null,0]
[null,347,null,null,null,null,null,null,null,null,null,null,null,null,null,null,0]
[null,348,null,null,null,null,null,null,null,null,null,null,null,null,null,null,0]
[null,"349-2",null,null,null,null,null,null,null,null,null,null,null,null,null,null,0]
[null,"355-2",null,null,null,null,null,null,null,null,null,null,null,null,null,null,0]
[null,357,null,null,null,null,null,null,null,null,null,null,null,null,null,null,0]
[null,"358-2",null,null,null,null,null,null,null,null,null,null,null,null,null,null,0]
[null,363,null,null,null,null,null,null,null,null,null,null,null,null,null,null,0]
[null,364,null,null,null,null,null,null,null,null,null,null,null,null,null,null,{"$f":"SUM(C334+L334+O334+P334)","v":0}]
[null,365,null,null,null,null,null,null,null,null,null,null,null,null,null,null,0]
[null,"366-2",null,null,null,null,null,null,null,null,null,null,null,null,null,null,0]
[null,368,null,null,null,null,null,null,null,null,null,null,null,null,null,null,0]
[null,369,null,null,null,null,null,null,null,null,null,null,null,null,null,null,0]
[null,370,null,null,null,null,null,null,null,null,null,null,null,null,null,null,0]
[null,371,null,null,null,null,null,null,null,null,null,null,null,null,null,null,0]
[null,372,null,null,null,null,null,null,null,null,null,null,null,null,null,null,0]
[null,"373-2",null,null,null,null,null,null,null,null,null,null,null,null,null,null,0]
[null,374,null,null,null,null,null,null,null,null,null,null,null,null,null,null,0]
[null,375,null,null,null,null,null,null,null,null,null,null,null,null,null,null,0]
[null,376,null,null,null,null,null,null,null,null,null,null,null,null,null,null,0]
[null,377,null,null,null,null,null,null,null,null,null,null,null,null,null,null,0]
[null,378,null,null,null,null,null,null,null,null,null,null,null,null,null,null,0]
[null,379,null,null,null,null,null,null,null,null,null,null,null,null,null,null,0]
[null,380,null,null,null,null,null,null,null,null,null,null,null,null,null,null,0]
[null,381,null,null,null,null,null,null,null,null,null,null,null,null,null,null,0]
[null,382,null,null,null,null,null,null,null,null,null,null,null,null,null,null,0]
[null,"383-2",null,null,null,null,null,null,null,null,null,null,null,null,null,null,0]
[null,"385-2",null,null,null,null,null,null,null,null,null,null,null,null,null,null,0]
[null,387,null,null,null,null,null,null,null,null,null,null,null,null,null,null,0]
[null,388,null,null,null,null,null,null,null,null,null,null,null,null,null,null,0]
[null,"389-2",null,null,null,null,null,null,null,null,null,null,null,null,null,null,0]
[null,392,null,null,null,null,null,null,null,null,null,null,null,null,null,null,0]
[null,393,null,null,null,null,null,null,null,null,null,null,null,null,null,null,0]
[null,"394-2",null,null,null,null,null,null,null,null,null,null,null,null,null,null,0]
[null,396,null,null,null,null,null,null,null,null,null,null,null,null,null,null,0]
[null,397,null,null,null,null,null,null,null,null,null,null,null,null,null,null,0]
[null,398,null,null,null,null,null,null,null,null,null,null,null,null,null,null,0]
[null,399,null,null,null,null,null,null,null,null,null,null,null,null,null,null,0]
[null,400,null,null,null,null,null,null,null,null,null,null,null,null,null,null,0]
[null,401,null,null,null,null,null,null,null,null,null,null,null,null,null,null,0]
[null,402,null,null,null,null,null,null,null,null,null,null,null,null,null,null,0]
[null,"403-2",null,null,null,null,null,null,null,null,null,null,null,null,null,null,0]
[null,"405-2",null,null,null,null,null,null,null,null,null,null,null,null,null,null,0]
[null,406,null,null,null,null,null,null,null,null,null,null,null,null,null,null,0]
[null,"407-2",null,null,null,null,null,null,null,null,null,null,null,null,null,null,0]
[null,408,null,null,null,null,null,null,null,null,null,null,null,null,null,null,0]
[null,409,null,null,null,null,null,null,null,null,null,null,null,null,null,null,0]
[null,410,null,null,null,null,null,null,null,null,null,null,null,null,null,null,0]
[null,411,null,null,null,null,null,null,null,null,null,null,null,null,null,null,0]
[null,412,null,null,null,null,null,null,null,null,null,null,null,null,null,null,0]
[null,413,null,null,null,null,null,null,null,null,null,null,null,null,null,null,0]
[null,414,null,null,null,null,null,null,null,null,null,null,null,null,null,null,0]
[null,415,null,null,null,null,null,null,null,null,null,null,null,null,null,null,0]
[null,416,null,null,null,null,null,null,null,null,null,null,null,null,null,null,0]
[null,417,null,null,null,null,null,null,null,null,null,null,null,null,null,null,0]
[null,418,null,null,null,null,null,null,null,null,null,null,null,null,null,null,0]
[null,419,null,null,null,null,null,null,null,null,null,null,null,null,null,null,0]
[null,420,null,null,null,null,null,null,null,null,null,null,null,null,null,null,0]
[null,421,null,null,null,null,null,null,null,null,null,null,null,null,null,null,0]
[null,422,null,null,null,null,null,null,null,null,null,null,null,null,null,null,0]
[null,423,null,null,null,null,null,null,null,null,null,null,null,null,null,null,0]
[null,"424-2",null,null,null,null,null,null,null,null,null,null,null,null,null,null,0]
[null,425,null,null,null,null,null,null,null,null,null,null,null,null,null,null,0]
[null,426,null,null,null,null,null,null,null,null,null,null,null,null,null,null,0]
[null,428,null,null,null,null,null,null,null,null,null,null,null,null,null,null,0]
[null,429,null,null,null,null,null,null,null,null,null,null,null,null,null,null,0]
[null,430,null,null,null,null,null,null,null,null,null,null,null,null,null,null,0]
[null,431,null,null,null,null,null,null,null,null,null,null,null,null,null,null,0]
[null,"432-2",null,null,null,null,null,null,null,null,null,null,null,null,null,null,0]
[null,"435-2",null,null,null,null,null,null,null,null,null,null,null,null,null,null,0]
[null,438,null,null,null,null,null,null,null,null,null,null,null,null,null,null,0]
[null,439,null,null,null,null,null,null,null,null,null,null,null,null,null,null,0]
[null,440,null,null,null,null,null,null,null,null,null,null,null,null,null,null,{"$f":"SUM(C398+L398+O398+P398)","v":0}]
[null,441,null,null,null,null,null,null,null,null,null,null,null,null,null,null,0]
[null,442,null,null,null,null,null,null,null,null,null,null,null,null,null,null,0]
[null,443,null,null,null,null,null,null,null,null,null,null,null,null,null,null,0]
[null,444,null,null,null,null,null,null,null,null,null,null,null,null,null,null,0]
[null,445,null,null,null,null,null,null,null,null,null,null,null,null,null,null,0]
[null,446,null,null,null,null,null,null,null,null,null,null,null,null,null,null,0]
[null,447,null,null,null,null,null,null,null,null,null,null,null,null,null,null,0]
[null,448,null,null,null,null,null,null,null,null,null,null,null,null,null,null,0]
[null,449,null,null,null,null,null,null,null,null,null,null,null,null,null,null,0]
[null,450,null,null,null,null,null,null,null,null,null,null,null,null,null,null,0]
[null,451,null,null,null,null,null,null,null,null,null,null,null,null,null,null,0]
[null,452,null,null,null,null,null,null,null,null,null,null,null,null,null,null,0]
[null,453,null,null,null,null,null,null,null,null,null,null,null,null,null,null,0]
[null,454,null,null,null,null,null,null,null,null,null,null,null,null,null,null,0]
[null,455,null,null,null,null,null,null,null,null,null,null,null,null,null,null,0]
[null,"456-2",null,null,null,null,null,null,null,null,null,null,null,null,null,null,0]
[null,461,null,null,null,null,null,null,null,null,null,null,null,null,null,null,0]
[null,462,null,null,null,null,null,null,null,null,null,null,null,null,null,null,0]
[null,"463-2",null,null,null,null,null,null,null,null,null,null,null,null,null,null,0]
[null,"465-2",null,null,null,null,null,null,null,null,null,null,null,null,null,null,0]
[null,467,null,null,null,null,null,null,null,null,null,null,null,null,null,null,0]
[null,"468-2",null,null,null,null,null,null,null,null,null,null,null,null,null,null,0]
[null,469,null,null,null,null,null,null,null,null,null,null,null,null,null,null,0]
[null,470,null,null,null,null,null,null,null,null,null,null,null,null,null,null,0]
[null,471,null,null,null,null,null,null,null,null,null,null,null,null,null,null,0]
[null,472,null,null,null,null,null,null,null,null,null,null,null,null,null,null,0]
[null,474,null,null,null,null,null,null,null,null,null,null,null,null,null,null,0]
[null,"475-2",null,null,null,null,null,null,null,null,null,null,null,null,null,null,0]
[null,477,null,null,null,null,null,null,null,null,null,null,null,null,null,null,0]
[null,478,null,null,null,null,null,null,null,null,null,null,null,null,null,null,0]
[null,479,null,null,null,null,null,null,null,null,null,null,null,null,null,null,0]
[null,"480-2",null,null,null,null,null,null,null,null,null,null,null,null,null,null,0]
[null,"481-3",null,null,null,null,null,null,null,null,null,null,null,null,null,null,0]
[null,483,null,null,null,null,null,null,null,null,null,null,null,null,null,null,0]
[null,485,null,null,null,null,null,null,null,null,null,null,null,null,null,null,0]
[null,486,null,null,null,null,null,null,null,null,null,null,null,null,null,null,0]
[null,487,null,null,null,null,null,null,null,null,null,null,null,null,null,null,0]
[null,"488-2",null,null,null,null,null,null,null,null,null,null,null,null,null,null,0]
[null,"489-3",null,null,null,null,null,null,null,null,null,null,null,null,null,null,0]
[null,494,null,null,null,null,null,null,null,null,null,null,null,null,null,null,0]
[null,495,null,null,null,null,null,null,null,null,null,null,null,null,null,null,0]
[null,"496-2",null,null,null,null,null,null,null,null,null,null,null,null,null,null,0]
[null,498,null,null,null,null,null,null,null,null,null,null,null,null,null,null,0]
[null,499,null,null,null,null,null,null,null,null,null,null,null,null,null,null,0]
[null,500,null,null,null,null,null,null,null,null,null,null,null,null,null,null,0]
[null,501,null,null,null,null,null,null,null,null,null,null,null,null,null,null,0]
[null,502,null,null,null,null,null,null,null,null,null,null,null,null,null,null,0]
[null,503,null,null,null,null,null,null,null,null,null,null,null,null,null,null,0]
[null,504,null,null,null,null,null,null,null,null,null,null,null,null,null,null,0]
[null,505,null,null,null,null,null,null,null,null,null,null,null,null,null,null,0]
[null,506,null,null,null,null,null,null,null,null,null,null,null,null,null,null,0]
[null,507,null,null,null,null,null,null,null,null,null,null,null,null,null,null,0]
[null,508,null,null,null,null,null,null,null,null,null,null,null,null,null,null,0]
[null,509,null,null,null,null,null,null,null,null,null,null,null,null,null,null,0]
[null,510,null,null,null,null,null,null,null,null,null,null,null,null,null,null,0]
[null,511,null,null,null,null,null,null,null,null,null,null,null,null,null,null,0]
[null,512,null,null,null,null,null,null,null,null,null,null,null,null,null,null,0]
[null,513,null,null,null,null,null,null,null,null,null,null,null,null,null,null,0]
[null,514,null,null,null,null,null,null,null,null,null,null,null,null,null,null,0]
[null,515,null,null,null,null,null,null,null,null,null,null,null,null,null,null,0]
[null,516,null,null,null,null,null,null,null,null,null,null,null,null,null,null,0]
[null,517,null,null,null,null,null,null,null,null,null,null,null,null,null,null,0]
[null,518,null,null,null,null,null,null,null,null,null,null,null,null,null,null,0]
[null,519,null,null,null,null,null,null,null,null,null,null,null,null,null,null,{"$f":"SUM(C462+L462+O462+P462)","v":0}]
[null,520,null,null,null,null,null,null,null,null,null,null,null,null,null,null,0]
[null,521,null,null,null,null,null,null,null,null,null,null,null,null,null,null,0]
[null,"522-2",null,null,null,null,null,null,null,null,null,null,null,null,null,null,0]
[null,525,null,null,null,null,null,null,null,null,null,null,null,null,null,null,0]
[null,526,null,null,null,null,null,null,null,null,null,null,null,null,null,null,0]
[null,527,null,null,null,null,null,null,null,null,null,null,null,null,null,null,0]
[null,528,null,null,null,null,null,null,null,null,null,null,null,null,null,null,0]
[null,529,null,null,null,null,null,null,null,null,null,null,null,null,null,null,0]
[null,530,null,null,null,null,null,null,null,null,null,null,null,null,null,null,0]
[null,531,null,null,null,null,null,null,null,null,null,null,null,null,null,null,0]
[null,532,null,null,null,null,null,null,null,null,null,null,null,null,null,null,0]
[null,533,null,null,null,null,null,null,null,null,null,null,null,null,null,null,0]
[null,534,null,null,null,null,null,null,null,null,null,null,null,null,null,null,0]
[null,"535-2",null,null,null,null,null,null,null,null,null,null,null,null,null,null,0]
[null,"538-2",null,null,null,null,null,null,null,null,null,null,null,null,null,null,0]
[null,540,null,null,null,null,null,null,null,null,null,null,null,null,null,null,0]
[null,541,null,null,null,null,null,null,null,null,null,null,null,null,null,null,0]
[null,542,null,null,null,null,null,null,null,null,null,null,null,null,null,null,0]
[null,543,null,null,null,null,null,null,null,null,null,null,null,null,null,null,0]
[null,544,null,null,null,null,null,null,null,null,null,null,null,null,null,null,0]
[null,545,null,null,null,null,null,null,null,null,null,null,null,null,null,null,0]
[null,546,null,null,null,null,null,null,null,null,null,null,null,null,null,null,0]
[null,"547-2",null,null,null,null,null,null,null,null,null,null,null,null,null,null,0]
[null,548,null,null,null,null,null,null,null,null,null,null,null,null,null,null,0]
[null,549,null,null,null,null,null,null,null,null,null,null,null,null,null,null,0]
[null,550,null,null,null,null,null,null,null,null,null,null,null,null,null,null,0]
[null,551,null,null,null,null,null,null,null,null,null,null,null,null,null,null,0]
[null,552,null,null,null,null,null,null,null,null,null,null,null,null,null,null,0]
[null,553,null,null,null,null,null,null,null,null,null,null,null,null,null,null,0]
[null,"554-2",null,null,null,null,null,null,null,null,null,null,null,null,null,null,0]
[null,"555-2",null,null,null,null,null,null,null,null,null,null,null,null,null,null,0]
[null,"557-2",null,null,null,null,null,null,null,null,null,null,null,null,null,null,0]
[null,558,null,null,null,null,null,null,null,null,null,null,null,null,null,null,0]
[null,"559-2",null,null,null,null,null,null,null,null,null,null,null,null,null,null,0]
[null,"560-3",null,null,null,null,null,null,null,null,null,null,null,null,null,null,0]
[null,"562-2",null,null,null,null,null,null,null,null,null,null,null,null,null,null,0]
[null,"563-2",null,null,null,null,null,null,null,null,null,null,null,null,null,null,0]
[null,564,null,null,null,null,null,null,null,null,null,null,null,null,null,null,0]
[null,565,null,null,null,null,null,null,null,null,null,null,null,null,null,null,0]
[null,566,null,null,null,null,null,null,null,null,null,null,null,null,null,null,0]
[null,567,null,null,null,null,null,null,null,null,null,null,null,null,null,null,0]
[null,568,null,null,null,null,null,null,null,null,null,null,null,null,null,null,0]
[null,569,null,null,null,null,null,null,null,null,null,null,null,null,null,null,0]
[null,570,null,null,null,null,null,null,null,null,null,null,null,null,null,null,0]
[null,571,null,null,null,null,null,null,null,null,null,null,null,null,null,null,0]
[null,572,null,null,null,null,null,null,null,null,null,null,null,null,null,null,0]
[null,573,null,null,null,null,null,null,null,null,null,null,null,null,null,null,0]
[null,574,null,null,null,null,null,null,null,null,null,null,null,null,null,null,0]
[null,575,null,null,null,null,null,null,null,null,null,null,null,null,null,null,0]
[null,576,null,null,null,null,null,null,null,null,null,null,null,null,null,null,0]
[null,577,null,null,null,null,null,null,null,null,null,null,null,null,null,null,0]
[null,578,null,null,null,null,null,null,null,null,null,null,null,null,null,null,0]
[null,579,null,null,null,null,null,null,null,null,null,null,null,null,null,null,0]
[null,580,null,null,null,null,null,null,null,null,null,null,null,null,null,null,0]
[null,581,null,null,null,null,null,null,null,null,null,null,null,null,null,null,0]
[null,582,null,null,null,null,null,null,null,null,null,null,null,null,null,null,0]
[null,583,null,null,null,null,null,null,null,null,null,null,null,null,null,null,0]
[null,584,null,null,null,null,null,null,null,null,null,null,null,null,null,null,0]
[null,585,null,null,null,null,null,null,null,null,null,null,null,null,null,null,0]
[null,586,null,null,null,null,null,null,null,null,null,null,null,null,null,null,0]
[null,587,null,null,null,null,null,null,null,null,null,null,null,null,null,null,0]
[null,588,null,null,null,null,null,null,null,null,null,null,null,null,null,null,0]
[null,589,null,null,null,null,null,null,null,null,null,null,null,null,null,null,0]
[null,590,null,null,null,null,null,null,null,null,null,null,null,null,null,null,{"$f":"SUM(C526+L526+O526+P526)","v":0}]
[null,591,null,null,null,null,null,null,null,null,null,null,null,null,null,null,0]
[null,592,null,null,null,null,null,null,null,null,null,null,null,null,null,null,0]
[null,593,null,null,null,null,null,null,null,null,null,null,null,null,null,null,0]
[null,594,null,null,null,null,null,null,null,null,null,null,null,null,null,null,0]
[null,595,null,null,null,null,null,null,null,null,null,null,null,null,null,null,0]
[null,596,null,null,null,null,null,null,null,null,null,null,null,null,null,null,0]
[null,597,null,null,null,null,null,null,null,null,null,null,null,null,null,null,0]
[null,598,null,null,null,null,null,null,null,null,null,null,null,null,null,null,0]
[null,599,null,null,null,null,null,null,null,null,null,null,null,null,null,null,0]
[null,600,null,null,null,null,null,null,null,null,null,null,null,null,null,null,0]
[null,601,null,null,null,null,null,null,null,null,null,null,null,null,null,null,0]
[null,602,null,null,null,null,null,null,null,null,null,null,null,null,null,null,0]
[null,603,null,null,null,null,null,null,null,null,null,null,null,null,null,null,0]
[null,604,null,null,null,null,null,null,null,null,null,null,null,null,null,null,0]
[null,605,null,null,null,null,null,null,null,null,null,null,null,null,null,null,0]
[null,606,null,null,null,null,null,null,null,null,null,null,null,null,null,null,0]
[null,607,null,null,null,null,null,null,null,null,null,null,null,null,null,null,0]
[null,608,null,null,null,null,null,null,null,null,null,null,null,null,null,null,0]
[null,609,null,null,null,null,null,null,null,null,null,null,null,null,null,null,0]
[null,610,null,null,null,null,null,null,null,null,null,null,null,null,null,null,0]
[null,611,null,null,null,null,null,null,null,null,null,null,null,null,null,null,0]
[null,612,null,null,null,null,null,null,null,null,null,null,null,null,null,null,0]
[null,613,null,null,null,null,null,null,null,null,null,null,null,null,null,null,0]
[null,614,null,null,null,null,null,null,null,null,null,null,null,null,null,null,0]
[null,615,null,null,null,null,null,null,null,null,null,null,null,null,null,null,0]
[null,616,null,null,null,null,null,null,null,null,null,null,null,null,null,null,0]
[null,"617-2",null,null,null,null,null,null,null,null,null,null,null,null,null,null,0]
[null,619,null,null,null,null,null,null,null,null,null,null,null,null,null,null,0]
[null,620,null,null,null,null,null,null,null,null,null,null,null,null,null,null,0]
[null,621,null,null,null,null,null,null,null,null,null,null,null,null,null,null,0]
[null,622,null,null,null,null,null,null,null,null,null,null,null,null,null,null,0]
[null,623,null,null,null,null,null,null,null,null,null,null,null,null,null,null,0]
[null,624,null,null,null,null,null,null,null,null,null,null,null,null,null,null,0]
[null,625,null,null,null,null,null,null,null,null,null,null,null,null,null,null,0]
[null,626,null,null,null,null,null,null,null,null,null,null,null,null,null,null,0]
[null,627,null,null,null,null,null,null,null,null,null,null,null,null,null,null,0]
[null,628,null,null,null,null,null,null,null,null,null,null,null,null,null,null,0]
[null,629,null,null,null,null,null,null,null,null,null,null,null,null,null,null,0]
[null,630,null,null,null,null,null,null,null,null,null,null,null,null,null,null,0]
[null,631,null,null,null,null,null,null,null,null,null,null,null,null,null,null,0]
[null,632,null,null,null,null,null,null,null,null,null,null,null,null,null,null,0]
[null,633,null,null,null,null,null,null,null,null,null,null,null,null,null,null,0]
[null,634,null,null,null,null,null,null,null,null,null,null,null,null,null,null,0]
[null,635,null,null,null,null,null,null,null,null,null,null,null,null,null,null,0]
[null,636,null,null,null,null,null,null,null,null,null,null,null,null,null,null,0]
[null,637,null,null,null,null,null,null,null,null,null,null,null,null,null,null,0]
[null,638,null,null,null,null,null,null,null,null,null,null,null,null,null,null,0]
[null,639,null,null,null,null,null,null,null,null,null,null,null,null,null,null,0]
[null,640,null,null,null,null,null,null,null,null,null,null,null,null,null,null,0]
[null,641,null,null,null,null,null,null,null,null,null,null,null,null,null,null,0]
[null,642,null,null,null,null,null,null,null,null,null,null,null,null,null,null,0]
[null,643,null,null,null,null,null,null,null,null,null,null,null,null,null,null,0]
[null,644,null,null,null,null,null,null,null,null,null,null,null,null,null,null,0]
[null,645,null,null,null,null,null,null,null,null,null,null,null,null,null,null,0]
[null,646,null,null,null,null,null,null,null,null,null,null,null,null,null,null,0]
[null,647,null,null,null,null,null,null,null,null,null,null,null,null,null,null,0]
[null,648,null,null,null,null,null,null,null,null,null,null,null,null,null,null,0]
[null,649,null,null,null,null,null,null,null,null,null,null,null,null,null,null,0]
[null,650,null,null,null,null,null,null,null,null,null,null,null,null,null,null,0]
[null,651,null,null,null,null,null,null,null,null,null,null,null,null,null,null,0]
[null,652,null,null,null,null,null,null,null,null,null,null,null,null,null,null,0]
[null,653,null,null,null,null,null,null,null,null,null,null,null,null,null,null,0]
[null,654,null,null,null,null,null,null,null,null,null,null,null,null,null,null,0]
[null,655,null,null,null,null,null,null,null,null,null,null,null,null,null,null,{"$f":"SUM(C590+L590+O590+P590)","v":0}]
[null,656,null,null,null,null,null,null,null,null,null,null,null,null,null,null,0]
[null,657,null,null,null,null,null,null,null,null,null,null,null,null,null,null,0]
[null,658,null,null,null,null,null,null,null,null,null,null,null,null,null,null,0]
[null,659,null,null,null,null,null,null,null,null,null,null,null,null,null,null,0]
[null,660,null,null,null,null,null,null,null,null,null,null,null,null,null,null,{"$f":"SUM(C595+L595+O595+P595)","v":0}]
[null,661,null,null,null,null,null,null,null,null,null,null,null,null,null,null,{"$f":"SUM(C596+L596+O596+P596)","v":0}]
[null,"合計",{"$f":"SUM(C13:C596)","v":0},{"$f":"SUM(D13:D596)","v":0},{"$f":"SUM(E13:E596)","v":0},{"$f":"SUM(F13:F596)","v":0},0,0,0,0,{"$f":"SUM(K13:K596)","v":0},0,0,{"$f":"SUM(N13:N596)","v":0},0,0,{"$f":"SUM(C597+L597+O597+P597)","v":0}]
[]
[null,"　　※　「合計」の欄は、自動計算されるため、手動入力を不要とする。"]
[]
[null,"注１"," 本表は、報告対象事業者が、電気通信番号規則別表第１号に掲げる固定電話番号の指定を受けている場合に限り提出すること。"]
[null,"２"," 「番号区画」の欄は、総務大臣が電気通信番号計画で定める番号区画に従い記載すること。"]
[null,"３","「番号使用数」の欄は、指定された電気通信番号のうち、最終利用者に付与している電気通信番号（報告対象事業者から卸電気通信役務の提供を受ける電気通信事業者が最終利用者に付与するものも含む。番号ポータビリティにより他の電気通信事業者が電気通信役務を提供しているものを除く。）の数を記載すること。"]
[null,"４"," 「うちダイヤルイン番号使用数」の欄は、利用者の回線契約数を超えて最終利用者に付与している電気通信番号の数を記載すること。"]
[null,"５"," 「うち利用者から見えない形で使用されるものの数」の欄は、呼の転送のために利用者から見えない形で使用されている電気通信番号の数を記載すること。"]
[null,"６"," 「うち卸提供数」の欄は、「番号使用数」及び「番号未使用数」のうち、卸電気通信役務により他の電気通信事業者に提供した電気通信番号の数をそれぞれ記載すること。\n　"]
[null,"７"," 「うち電話転送役務の数」の欄は、「番号使用数」のうち、電話転送役務（発信転送又は着信転送における利用者設備識別番号として固定電話番号を使用する場合に限る。）を提供している場合に、当該電話転送役務の用に供する電気通信番号の数を記載すること。"]
[null,"８"," 「番号未使用数」の欄は、指定された電気通信番号のうち、最終利用者に付与していないものの数から番号休止数を除いたものの数を記載すること。"]
[null,"９"," 「うち永続的に使用予定のないものの数」の欄は、「番号未使用数」のうち、永続的に付与しないものの数を記載すること。"]
[null,"10"," 「番号休止数」の欄は、指定された電気通信番号のうち、利用者の混乱回避等の観点から付与をしていないものの数を記載すること。"]
[null,"11"," 「番号ポータビリティに係る番号使用数」の欄は、指定された電気通信番号のうち、番号ポータビリティにより他の電気通信事業者が電気通信役務を提供している電気通信番号の数を記載すること。"]
[null,"12"," 用紙の大きさは、日本産業規格Ａ列４番とすること。"]

{"sheet":"様式第28（第２表）","index":1,"n_rows":38,"n_cols":10,"rows_kept":38,"cut":false,"hidden":false,"merged":[[3,1,3,9],[4,1,4,9],[10,1,11,1],[10,2,10,3],[10,4,10,6],[10,7,11,7],[10,8,11,8],[38,2,38,9],[10,9,11,9],[6,7,6,9],[7,7,7,9],[8,7,8,9],[34,2,34,9],[35,2,35,9],[36,2,36,9],[37,2,37,9],[28,2,28,9],[33,2,33,9],[29,2,29,9],[30,2,30,9],[31,2,31,9],[32,2,32,9]]}
[null,"様式第28（第８条関係）"]
[null,"　第２表"]
[]
[null,"電気通信番号の使用に関する報告"]
[null,"（自らが指定を受けた番号(0AB～J以外)/番号使用状況）"]
[]
[null,null,null,null,null,null,null,"令和　　年3月31日現在"]
[null,null,null,null,null,null,"事業者名"]
[null,null,null,null,null,null,"法人番号"]
[]
[null,"電気通信番号の種別","番号使用数",null,"番号未使用数",null,null,"番号休止数","番号ポータビリティに係る番号使用数","FMCサービスに係る番号使用数"]
[null,null,null,"うち卸提供数",null,"うち卸提供数","うち永続的に使用予定のないものの数"]
[]
[]
[]
[]
[]
[]
[]
[]
[]
[]
[]
[]
[null,"合計",{"$f":"SUM(C13:C24)","v":0},0,0,0,0,0,0,0]
[]
[null,"　　※　「合計」の欄は、自動計算されるため、手動入力を不要とする。"]
[]
[null,"注１"," 本表は、報告対象事業者が、電気通信番号規則別表第１号に掲げる固定電話番号以外の電気通信番号の指定を受けている場合に限り提出すること。"]
[null,"２","「電気通信番号の種別」の欄は、「付加的役務電話番号（０１２０）」、「付加的役務電話番号（０１７０）」、「付加的役務電話番号（０１８０）」、「付加的役務電話番号（０５７０）」、「付加的役務電話番号（０８００）」、「付加的役務電話番号（０９９０）」、「データ伝送携帯電話番号（０２００）」、「データ伝送携帯電話番号（０２０Ｃ）」、「音声伝送携帯電話番号（０７０／０８０／０９０）」、「無線呼出番号（０２０４）」、「特定ＩＰ電話番号（０５０）」、「ＦＭＣ電話番号（０６００）」又は「特定接続電話番号（９１ＣＤＥ）」を記載すること。"]
[null,"３"," 「番号使用数」の欄は、指定された電気通信番号のうち、最終利用者に付与している電気通信番号（報告対象事業者から卸電気通信役務の提供を受ける電気通信事業者が最終利用者に付与するものも含む。番号ポータビリティにより他の電気通信事業者が電気通信役務を提供しているものを除く。）の数を記載すること。"]
[null,"４","「うち卸提供数」の欄は、「番号使用数」及び「番号未使用数」のうち、卸電気通信役務により他の電気通信事業者に提供した電気通信番号の数をそれぞれ記載すること。"]
[null,"５"," 「番号未使用数」の欄は、指定された電気通信番号のうち、最終利用者に付与していないものの数から番号休止数を除いたものの数を記載すること。"]
[null,"６"," 「うち永続的に使用予定のないものの数」の欄は、「番号未使用数」のうち、永続的に付与しないものの数を記載すること。"]
[null,"７"," 「番号休止数」の欄は、指定された電気通信番号のうち、利用者の混乱回避等の観点から付与をしていないものの数を記載すること。"]
[null,"８"," 「番号ポータビリティに係る番号使用数」の欄は、指定された電気通信番号のうち、番号ポータビリティにより他の電気通信事業者が電気通信役務を提供している電気通信番号の数を記載すること。"]
[null,"９"," 「ＦＭＣサービスに係る番号使用数」の欄は、電気通信番号規則別表第４号又は第６号に掲げる電気通信番号を同規則別表第７号に掲げるＦＭＣ電話番号と同じ電気通信設備又は提供すべき電気通信役務の種類若しくは内容を識別するために使用する場合の当該電気通信番号の数を記載すること。"]
[null,"10"," 用紙の大きさは、日本産業規格Ａ列４番とすること。"]

{"sheet":"様式第28（第３表）","index":2,"n_rows":25,"n_cols":10,"rows_kept":25,"cut":false,"hidden":false,"merged":[[6,7,6,9],[11,1,11,3],[3,1,3,9],[4,1,4,9],[7,7,7,9],[8,7,8,9],[9,7,9,9],[11,5,11,9],[25,2,25,9],[18,2,18,9],[19,2,19,9],[20,2,20,9],[21,2,21,9],[22,2,22,9],[14,1,14,3],[15,1,15,3],[24,2,24,9],[12,6,12,9],[11,4,13,4],[23,2,23,9]]}
[null,"様式第28（第８条関係）"]
[null,"　第３表"]
[]
[null,"電気通信番号の使用に関する報告"]
[null,"（番号ポータビリティ実施状況）"]
[]
[null,null,null,null,null,null,null,"令和　　年4月１日から"]
[null,null,null,null,null,null,null,"令和　　年3月31日まで"]
[null,null,null,null,null,null,"事業者名"]
[null,null,null,null,null,null,"法人番号"]
[]
[null,"電気通信番号の種別",null,null,"番号ポータビリティに係るポートイン数","番号ポータビリティに係るポートアウト数"]
[null,null,null,null,null,null,"うち卸電気通信役務により他の電気通信事業者に提供した音声伝送携帯電話番号の番号ポータビリティに係るポートアウト数を除いた数"]
[null,null,null,null,null,null,null,"うち対面で\n手続した数","うち電話で\n手続した数","うちインターネットで手続した数"]
[]
[]
[]
[]
[null,"注１"," 本表は、報告対象事業者が、電気通信番号規則別表第１号に掲げる固定電話番号、又は同表第４号に掲げる音声伝送携帯電話番号の指定を受けている場合に限り提出すること。"]
[null,"２"," 「電気通信番号の種別」の欄は、「固定電話番号（０ＡＢ～Ｊ）」又は「音声伝送携帯電話番号（０７０／０８０／０９０）」を記載すること。"]
[null,"３"," 「番号ポータビリティに係るポートイン数」の欄は、番号ポータビリティにより他の電気通信事業者から報告対象事業者に契約を変更した数を記載すること。"]
[null,"４"," 「番号ポータビリティに係るポートアウト数」の欄は、番号ポータビリティにより報告対象事業者から他の電気通信事業者に契約を変更した数を記載すること。"]
[null,"５"," 注３及び注４について、他の電気通信事業者に対し、卸電気通信役務を提供している場合には、当該電気通信事業者の番号ポータビリティに係るポートイン数及び番号ポータビリティに係るポートアウト数を、それぞれ自らの番号ポータビリティに係るポートイン数及び番号ポータビリティに係るポートアウト数として含めること。"]
[null,"６"," 「電気通信番号の種別」の欄が「音声伝送携帯電話番号（０７０／０８０／０９０）」の場合は、「うち卸電気通信役務により他の電気通信事業者に提供した音声伝送携帯電話番号の番号ポータビリティに係るポートアウト数を除いた数」の欄を記載するとともに、「うち対面で手続した数」、「うち電話で手続した数」及び「うちインターネットで手続した数」の欄に、番号ポータビリティに係るポートアウトの手続方法ごとのポートアウト数を記載すること。"]
[null,"７"," 用紙の大きさは、日本産業規格Ａ列４番とすること。"]

{"sheet":"様式第28の２","index":3,"n_rows":42,"n_cols":8,"rows_kept":42,"cut":false,"hidden":false,"merged":[[2,1,2,8],[3,1,3,8],[5,6,5,8],[6,6,6,8],[7,6,7,8],[9,1,9,2],[9,3,9,4],[9,5,9,6],[9,7,9,8],[20,7,20,8],[15,1,15,2],[16,1,16,2],[17,1,17,2],[18,1,18,2],[10,1,10,2],[10,3,10,4],[10,5,10,6],[16,5,16,6],[17,5,17,6],[18,5,18,6],[10,7,10,8],[11,1,11,2],[12,1,12,2],[13,1,13,2],[14,1,14,2],[11,7,11,8],[12,7,12,8],[13,7,13,8],[11,5,11,6],[12,5,12,6],[13,5,13,6],[15,5,15,6],[42,2,42,8],[14,7,14,8],[15,7,15,8],[16,7,16,8],[17,7,17,8],[18,7,18,8],[21,7,21,8],[24,7,24,8],[22,7,22,8],[19,7,19,8],[37,2,37,8],[38,2,38,8],[39,2,39,8],[40,2,40,8],[41,2,41,8],[23,7,23,8],[25,7,25,8],[23,1,23,2],[24,1,24,2],[24,5,24,6],[25,5,25,6],[21,1,21,2],[22,1,22,2],[14,5,14,6],[23,5,23,6],[19,5,19,6],[20,5,20,6],[21,5,21,6],[22,5,22,6],[20,3,20,4],[21,3,21,4],[22,3,22,4],[23,3,23,4],[34,5,34,6],[33,5,33,6],[32,5,32,6],[31,5,31,6],[30,5,30,6],[34,7,34,8],[33,7,33,8],[32,7,32,8],[31,7,31,8],[30,7,30,8],[34,3,34,4],[34,1,34,2],[25,1,25,2],[11,3,11,4],[12,3,12,4],[13,3,13,4],[14,3,14,4],[15,3,15,4],[16,3,16,4],[24,3,24,4],[25,3,25,4],[17,3,17,4],[18,3,18,4],[19,3,19,4],[19,1,19,2],[20,1,20,2],[30,3,30,4],[32,3,32,4],[31,3,31,4],[33,3,33,4],[30,1,30,2],[31,1,31,2],[32,1,32,2],[33,1,33,2],[28,7,28,8],[29,7,29,8],[27,7,27,8],[26,7,26,8],[29,1,29,2],[28,1,28,2],[27,1,27,2],[26,1,26,2],[26,5,26,6],[27,5,27,6],[28,5,28,6],[29,5,29,6],[26,3,26,4],[27,3,27,4],[28,3,28,4],[29,3,29,4]]}
[null,"様式第28の２（第８条関係）"]
[]
[null,"電気通信番号の使用に関する報告"]
[null,"（卸電気通信役務(0AB～J)の提供状況）"]
[]
[null,null,null,null,null,null,"令和　　年3月31日現在"]
[null,null,null,null,null,"事業者名"]
[null,null,null,null,null,"法人番号"]
[]
[null,"卸先事業者名",null,"法人番号",null,"卸電気通信役務に\nより提供する番号数",null,"電話転送役務の提供"]
[]
[]
[]
[]
[]
[]
[]
[]
[]
[]
[]
[]
[]
[]
[]
[]
[]
[]
[]
[]
[]
[]
[]
[]
[]
[]
[]
[null,"注１"," 本様式は、報告対象事業者が、電気通信番号規則別表第１号に掲げる固定電話番号を使用して卸電気通信役務の提供を行う場合に限り提出すること。"]
[null,"２","「卸先事業者名」及び「法人番号」の欄は、報告対象事業者から卸電気通信役務の提供を受ける電気通信事業者（以下「卸先事業者」という。）について、卸先事業者の氏名又は名称、及び卸先事業者の法人番号をそれぞれ記載すること。ただし、法人番号の記載ができない場合にあつては、当該電気通信事業者の住所を記載すること。"]
[null,"３"," 「卸電気通信役務により提供する番号数」の欄は、卸先事業者ごとに、卸電気通信役務により提供した電気通信番号の数を記載すること。"]
[null,"４"," 「電話転送役務の提供」の欄は、卸先事業者に対し、電話転送役務（発信転送又は着信転送における利用者設備識別番号として固定電話番号を使用する場合に限る。）を提供している場合に「○」を記載すること。"]
[null,"５"," 用紙の大きさは、日本産業規格Ａ列４番とすること。"]

{"sheet":"様式第28の３","index":4,"n_rows":45,"n_cols":9,"rows_kept":45,"cut":false,"hidden":false,"merged":[[2,1,2,8],[3,1,3,8],[5,7,5,8],[6,7,6,8],[7,7,7,8],[45,3,45,8],[43,2,43,8],[44,2,44,8],[9,8,10,8],[41,2,41,8],[42,2,42,8],[9,2,10,2],[34,1,34,2],[9,6,10,6],[38,2,38,8],[9,1,10,1],[9,3,9,5],[9,7,10,7],[39,2,39,8],[40,2,40,8]]}
[null,"様式第28の３（第８条関係）"]
[]
[null,"電気通信番号の使用に関する報告"]
[null,"（自らが指定を受けていない番号/番号使用状況）"]
[]
[null,null,null,null,null,null,null,"令和　　年3月31日現在"]
[null,null,null,null,null,null,"事業者名"]
[null,null,null,null,null,null,"法人番号"]
[]
[null,"電気通信番号の種別","卸元事業者名","番号使用数",null,null,"番号未使用数","備考","合計"]
[null,null,null,null,"うち卸提供数","うち電話転送役務の数"]
[null,null,null,null,null,null,null,null,{"$f":"SUM(D12,G12)","v":0}]
[null,null,null,null,null,null,null,null,{"$f":"SUM(D13,G13)","v":0}]
[null,null,null,null,null,null,null,null,0]
[null,null,null,null,null,null,null,null,0]
[null,null,null,null,null,null,null,null,0]
[null,null,null,null,null,null,null,null,0]
[null,null,null,null,null,null,null,null,0]
[null,null,null,null,null,null,null,null,0]
[null,null,null,null,null,null,null,null,0]
[null,null,null,null,null,null,null,null,0]
[null,null,null,null,null,null,null,null,0]
[null,null,null,null,null,null,null,null,0]
[null,null,null,null,null,null,null,null,0]
[null,null,null,null,null,null,null,null,0]
[null,null,null,null,null,null,null,null,0]
[null,null,null,null,null,null,null,null,0]
[null,null,null,null,null,null,null,null,0]
[null,null,null,null,null,null,null,null,0]
[null,null,null,null,null,null,null,null,0]
[null,null,null,null,null,null,null,null,0]
[null,null,null,null,null,null,null,null,0]
[null,null,null,null,null,null,null,null,0]
[null,null,null,null,null,null,null,null,0]
[null,"合計",null,{"$f":"SUM(D12:D34)","v":0},{"$f":"SUM(E12:E34)","v":0},{"$f":"SUM(F12:F34)","v":0},{"$f":"SUM(G12:G34)","v":0},null,{"$f":"SUM(D35,G35)","v":0}]
[]
[null,"　　※　「合計」の欄は、自動計算されるため、手動入力を不要とする。"]
[]
[null,"注１"," 「電気通信番号の種別」の欄は、「固定電話番号（０ＡＢ～Ｊ）」、「付加的役務電話番号（０１２０）」、「付加的役務電話番号（０１７０）」、「付加的役務電話番号（０１８０）」、「付加的役務電話番号（０５７０）」、「付加的役務電話番号（０８００）」、「付加的役務電話番号（０９９０）」、「データ伝送携帯電話番号（０２００）」、「データ伝送携帯電話番号（０２０Ｃ）」、「音声伝送携帯電話番号（０７０／０８０／０９０）」、「無線呼出番号（０２０４）」、「特定ＩＰ電話番号（０５０）」、「ＦＭＣ電話番号（０６００）」又は「特定接続電話番号（９１ＣＤＥ）」を記載すること。"]
[null,"２"," 「卸元事業者名」の欄は、報告対象事業者に卸電気通信役務の提供を行う電気通信事業者について、その氏名又は名称を記載すること。"]
[null,"３"," 「番号使用数」の欄は、最終利用者に付与している電気通信番号（報告対象事業者から卸電気通信役務の提供を受ける電気通信事業者が最終利用者に付与するものも含む。）の数を記載すること。"]
[null,"４"," 「うち卸提供数」の欄は、「番号使用数」のうち、卸電気通信役務により他の電気通信事業者に提供した電気通信番号の数を記載すること。"]
[null,"５"," 「うち電話転送役務の数」の欄は、「番号使用数」のうち、電話転送役務（発信転送又は着信転送における利用者設備識別番号として固定電話番号を使用する場合に限る。）を提供している場合に、当該電話転送役務の用に供する電気通信番号の数を記載すること。"]
[null,"６"," 注記すべき事項がある場合には、「備考」の欄にその内容を記載すること。"]
[null,"７"," 用紙の大きさは、日本産業規格Ａ列４番とすること。"]

{"sheet":"様式第28の４（第１表）","index":5,"n_rows":44,"n_cols":7,"rows_kept":44,"cut":false,"hidden":false,"merged":[[10,1,11,1],[10,2,10,3],[10,4,11,4],[10,5,11,5],[3,1,3,6],[4,1,4,6],[6,5,6,6],[7,5,7,6],[8,5,8,6],[43,2,43,6],[44,2,44,6],[10,6,11,6],[39,2,39,6],[40,2,40,6],[41,2,41,6],[42,2,42,6]]}
[null,"様式第28の４（第８条関係）"]
[null,"　第１表"]
[]
[null,"電気通信番号の使用に関する報告"]
[null,"（みなし認定/番号使用状況）"]
[]
[null,null,null,null,null,"令和　　年3月31日現在"]
[null,null,null,null,"事業者名"]
[null,null,null,null,"法人番号"]
[]
[null,"電気通信番号の種別","番号使用数",null,"番号未使用数","備考","合計"]
[null,null,null,"うち卸提供数"]
[null,null,null,null,null,null,{"$f":"SUM(C13,E13)","v":0}]
[null,null,null,null,null,null,0]
[null,null,null,null,null,null,0]
[null,null,null,null,null,null,0]
[null,null,null,null,null,null,0]
[null,null,null,null,null,null,0]
[null,null,null,null,null,null,0]
[null,null,null,null,null,null,0]
[null,null,null,null,null,null,0]
[null,null,null,null,null,null,0]
[null,null,null,null,null,null,0]
[null,null,null,null,null,null,0]
[null,null,null,null,null,null,0]
[null,null,null,null,null,null,0]
[null,null,null,null,null,null,0]
[null,null,null,null,null,null,0]
[null,null,null,null,null,null,0]
[null,null,null,null,null,null,0]
[null,null,null,null,null,null,0]
[null,null,null,null,null,null,0]
[null,null,null,null,null,null,0]
[null,null,null,null,null,null,0]
[null,null,null,null,null,null,0]
[null,"合計",{"$f":"SUM(C13:C35)","v":0},{"$f":"SUM(D13:D35)","v":0},{"$f":"SUM(E13:E35)","v":0},null,0]
[]
[null,"　　※　「合計」の欄は、自動計算されるため、手動入力を不要とする。"]
[]
[null,"注１"," 「電気通信番号の種別」の欄は、「固定電話番号（０ＡＢ～Ｊ）」、「付加的役務電話番号（０１２０）」、「付加的役務電話番号（０１７０）」、「付加的役務電話番号（０１８０）」、「付加的役務電話番号（０５７０）」、「付加的役務電話番号（０８００）」、「付加的役務電話番号（０９９０）」、「データ伝送携帯電話番号（０２００）」、「データ伝送携帯電話番号（０２０Ｃ）」、「音声伝送携帯電話番号（０７０／０８０／０９０）」、「無線呼出番号（０２０４）」、「特定ＩＰ電話番号（０５０）」、「ＦＭＣ電話番号（０６００）」又は「特定接続電話番号（９１ＣＤＥ）」を記載すること。"]
[null,"２"," 「番号使用数」の欄は、最終利用者に付与している電気通信番号（報告対象事業者から卸電気通信役務の提供を受ける電気通信事業者が最終利用者に付与するものも含む。）の数を記載すること。"]
[null,"３"," 「うち卸提供数」の欄は、「番号使用数」のうち、卸電気通信役務により他の電気通信事業者に提供した電気通信番号の数を記載すること。"]
[null,"４"," 注記すべき事項がある場合には、「備考」の欄にその内容を記載すること。"]
[null,"５"," 用紙の大きさは、日本産業規格Ａ列４番とすること。"]

{"sheet":"様式第28の４（第２表）","index":6,"n_rows":41,"n_cols":9,"rows_kept":41,"cut":false,"hidden":false,"merged":[[41,2,41,5],[3,1,3,5],[4,1,4,5],[6,4,6,5],[7,4,7,5],[8,4,8,5],[10,1,11,1],[10,2,10,3],[10,4,11,4],[10,5,11,5],[38,2,38,5],[39,2,39,5],[40,2,40,5]]}
[null,"様式第28の４（第８条関係）"]
[null,"　第２表"]
[]
[null,"電気通信番号の使用に関する報告",null,null,null,null,null,null,"○"]
[null,"（みなし認定/電気通信番号使用計画作成状況）"]
[]
[null,null,null,null,"令和　　年3月31日現在"]
[null,null,null,"事業者名"]
[null,null,null,"法人番号"]
[]
[null,"電気通信番号の種別","標準電気通信番号使用計画",null,"作成した年月日","最後に変更した年月日"]
[null,null,"別表第１","別表第２"]
[]
[]
[]
[]
[]
[]
[]
[]
[]
[]
[]
[]
[]
[]
[]
[]
[]
[]
[]
[]
[]
[]
[null,"合計",{"$f":"COUNTIF(C13:C34,\"○\")","v":0},{"$f":"COUNTIF(D13:D34,\"○\")","v":0}]
[]
[null,"　　※　「合計」の欄は、自動計算されるため、手動入力を不要とする。"]
[]
[null,"注１"," 「電気通信番号の種別」の欄は、電気通信番号規則別表に掲げる電気通信番号の種別（付加的役務電話番号の場合は、識別しようとする電気通信役務の内容を含む。）を記載すること。"]
[null,"２"," 「標準電気通信番号使用計画」の欄は、対応する標準電気通信番号使用計画の該当する欄に「○」を記載すること。"]
[null,"３"," 用紙の大きさは、日本産業規格Ａ列４番とすること。"]

{"sheet":"（選択）","index":7,"n_rows":23,"n_cols":6,"rows_kept":23,"cut":false,"hidden":true,"merged":[[20,14,32,21]]}
[]
[]
[]
[null,"様式第28（第２表）",null,"様式第28の２",null,"様式第28（第２表）／様式第28の４（第１表･第２表）"]
[null,"番号種別",null,"電話転送役務の提供の有無",null,"番号種別"]
[null,"付加的役務電話番号（０１２０）",null,"○",null,"固定電話番号（０ＡＢ～Ｊ）"]
[null,"付加的役務電話番号（０１７０）",null,null,null,"付加的役務電話番号（０１２０）"]
[null,"付加的役務電話番号（０１８０）",null,null,null,"付加的役務電話番号（０１７０）"]
[null,"付加的役務電話番号（０５７０）",null,null,null,"付加的役務電話番号（０１８０）"]
[null,"付加的役務電話番号（０８００）",null,null,null,"付加的役務電話番号（０５７０）"]
[null,"付加的役務電話番号（０９９０）",null,null,null,"付加的役務電話番号（０８００）"]
[null,"データ伝送携帯電話番号（０２００）",null,null,null,"付加的役務電話番号（０９９０）"]
[null,"データ伝送携帯電話番号（０２０Ｃ）",null,null,null,"データ伝送携帯電話番号（０２００）"]
[null,"音声伝送携帯電話番号（０７０／０８０／０９０）",null,null,null,"データ伝送携帯電話番号（０２０Ｃ）"]
[null,"無線呼出番号（０２０４）",null,null,null,"音声伝送携帯電話番号（０７０／０８０／０９０）"]
[null,"特定ＩＰ電話番号（０５０）",null,null,null,"無線呼出番号（０２０４）"]
[null,"ＦＭＣ電話番号（０６００）",null,null,null,"特定ＩＰ電話番号（０５０）"]
[null,"特定接続電話番号（９１ＣＤＥ）",null,null,null,"ＦＭＣ電話番号（０６００）"]
[null,null,null,null,null,"特定接続電話番号（９１ＣＤＥ）"]
[null,"様式第28（第３表）"]
[null,"番号種別"]
[null,"固定電話番号（０ＡＢ～Ｊ）"]
[null,"音声伝送携帯電話番号（０７０／０８０／０９０）"]